bitfinex/quotes_ETHUSD_20240924
["timestamp","ask_amount","ask_price","bid_price","bid_amount"]
[1727179985695,4.85807767,2641.4,2641.3,3.35677633]
[1727179985903,4.46255778,2641.4,2641.3,4.38563596]
[1727179986097,2.88050438,2641.4,2641.3,4.38563596]
[1727179986323,2.78694775,2641.4,2641.3,3.35677633]
[1727179986525,2.88060862,2641.4,2641.3,3.35677633]
[1727179986836,1.60039037,2641.4,2641.3,3.35677633]
[1727179987839,3.18244377,2641.4,2641.3,3.35677633]
[1727179990021,2.88060862,2641.4,2641.3,3.35677633]
[1727179990351,3.18203553,2641.4,2641.3,3.35677633]
[1727179991847,4.55690529,2641.4,2641.3,3.35677633]
[1727179993569,4.46225378,2641.4,2641.3,3.35677633]
[1727179994331,2.88020038,2641.4,2641.3,3.35677633]
[1727179995437,2.88020038,2641.4,2641.3,2.54557633]
[1727179995653,4.85727265,2641.4,2641.3,2.54557633]
[1727179996932,8.64314265,2641.4,2641.3,2.54557633]
[1727179997162,6.66607038,2641.4,2641.3,2.54557633]
[1727179997470,6.76072568,2641.4,2641.3,2.54557633]
[1727179998465,8.73976708,2641.4,2641.3,2.54557633]
[1727179998671,8.64510761,2641.4,2641.3,2.54557633]
[1727179998858,6.66607038,2641.4,2641.3,2.54557633]
[1727179999031,6.76072488,2641.4,2641.3,2.54557633]
[1727179999557,6.76072486,2641.4,2641.3,2.54557633]
[1727180000072,6.66761013,2641.4,2641.3,2.5]
[1727180000285,6.66761013,2641.4,2641.3,2.54436381]
[1727180004966,6.66748713,2641.4,2641.3,2.54436381]
[1727180006542,16.91219882,2641.4,2640.6,0.0083686]
[1727180006778,6.78687,2640.7,2640.6,0.0083686]
[1727180006981,9.66848713,2640.7,2640.6,0.0083686]
[1727180007141,13.64339561,2640.7,2640.6,0.0083686]
[1727180007346,9.66848713,2640.7,2640.6,0.0083686]
[1727180008301,11.64484577,2640.7,2640.6,0.0083686]
[1727180008672,4.46275367,2640.7,2640.6,0.0083686]
[1727180009324,3.18253542,2640.7,2640.6,0.0083686]
[1727180009527,4.45952949,2640.7,2640.6,0.0083686]
[1727180009810,2.78390356,2640.7,2640.6,0.0083686]
[1727180010772,2.38857358,2640.7,2640.6,10.4697506]
[1727180010972,2.38851838,2640.7,2640.6,2.36412188]
[1727180011217,1.5981195,2640.7,2640.6,0.7932686]
[1727180011816,1.4295888,2640.7,2640.6,0.7932686]
[1727180012017,2.38843842,2640.7,2640.6,0.7932686]
[1727180012314,2.38832184,2640.7,2640.6,0.7932686]
[1727180012491,1.5981195,2640.7,2640.6,0.7932686]
[1727180013315,2.38828046,2640.7,2640.6,0.7932686]
[1727180013707,1.5981195,2640.7,2640.6,0.7932686]
[1727180014221,2.38822827,2640.7,2640.6,0.7932686]
[1727180014417,2.38856393,2640.7,2640.6,0.7932686]
[1727180015787,2.38856393,2640.7,2640.6,1.25131446]
[1727180016324,1.74916351,2640.7,2640.6,1.25131446]
[1727180016486,2.38856393,2640.7,2640.6,1.25131446]
[1727180017875,0.63940042,2640.7,2640.6,1.25131446]
[1727180018077,0.79006287,2640.7,2640.6,1.25131446]
[1727180018319,0.63940042,2640.7,2640.6,1.25131446]
[1727180018903,2.38874853,2640.8,2640.6,1.25131446]
[1727180019077,0.63940042,2640.7,2640.6,1.25131446]
[1727180019277,2.3887427,2640.8,2640.6,1.25131446]
[1727180019603,0.63940042,2640.7,2640.6,1.25131446]
[1727180020190,1.42946329,2640.8,2640.6,1.25131446]
[1727180020405,2.38871181,2640.8,2640.6,1.25131446]
[1727180020612,2.38871181,2640.8,2640.6,0.7932686]
[1727180021321,2.38871181,2640.8,2640.6,2.24486078]
[1727180021704,1.18572886,2640.9,2640.7,8.352041]
[1727180021705,0.79006287,2640.9,2640.7,8.352041]
[1727180021884,2.38885573,2640.9,2640.6,6.03186078]
[1727180022082,0.63951714,2640.8,2640.6,7.01376586]
[1727180022282,0.79006287,2640.9,2640.8,0.7849]
[1727180022483,2.3889728,2640.9,2640.8,0.7849]
[1727180023522,1.59890993,2640.9,2640.8,0.7849]
[1727180024127,1.59878702,2640.9,2640.8,0.7849]
[1727180025420,1.82524367,2640.9,2640.8,0.7849]
[1727180025718,2.38878504,2640.9,2640.8,0.7849]
[1727180027281,1.59878702,2640.9,2640.8,0.7849]
[1727180027491,2.38881958,2640.9,2640.8,0.7849]
[1727180028897,1.42984996,2640.9,2640.8,0.7849]
[1727180029236,2.38957607,2640.9,2640.8,0.7849]
[1727180030414,0.6398174,2640.9,2640.8,4.57163]
[1727180030612,0.79003256,2640.9,2640.8,0.7849]
[1727180031000,1.74979688,2640.9,2640.8,0.7849]
[1727180031530,2.38963976,2640.9,2640.8,0.7849]
[1727180031715,1.74980691,2640.9,2640.8,0.7849]
[1727180032311,0.95977435,2640.9,2640.8,0.7849]
[1727180032637,0.63984288,2640.9,2640.8,0.7849]
[1727180032829,2.38936295,2640.9,2640.8,0.7849]
[1727180033016,1.59933039,2640.9,2640.8,0.7849]
[1727180033222,1.74952007,2640.9,2640.8,0.7849]
[1727180034025,1.74956977,2640.9,2640.8,0.7849]
[1727180034499,2.38926124,2640.9,2640.8,0.7849]
[1727180034699,1.74956977,2640.9,2640.8,0.7849]
[1727180035039,2.38926124,2640.9,2640.8,0.7849]
[1727180035234,1.74956977,2640.9,2640.8,0.7849]
[1727180035397,1.42972403,2640.9,2640.8,0.7849]
[1727180035597,2.38926124,2640.9,2640.8,0.7849]
[1727180038011,0.95953721,2640.9,2640.8,6.58123504]
[1727180038250,0.79003256,2641.2,2640.9,4.57079]
[1727180038531,1.43032192,2641.2,2641.0,29.29208008]
[1727180038698,0.79003256,2641.2,2641.1,9.541911]
[1727180038897,2.39075212,2641.2,2641.1,9.541911]
[1727180039096,2.39094155,2641.2,2641.1,4.293097]
[1727180039400,2.39094155,2641.2,2640.9,4.57088]
[1727180039401,2.78644842,2641.2,2640.9,4.57088]
[1727180039603,6.64759388,2641.4,2640.9,4.57088]
[1727180039604,2.390942,2641.1,2640.9,4.57088]
[1727180039954,0.79022244,2641.1,2641.0,3.78644]
[1727180040242,0.79022244,2641.1,2640.9,0.7843]
[1727180040243,1.75066209,2641.1,2640.9,0.7843]
[1727180040540,2.39095519,2641.0,2640.9,0.7843]
[1727180042239,2.39095519,2641.0,2640.9,5.606496]
[1727180042401,1.60073275,2641.0,2640.9,5.606496]
[1727180042741,2.39127587,2641.0,2640.9,5.606496]
[1727180043035,2.39131667,2641.0,2640.9,4.848496]
[1727180043226,2.39131667,2641.0,2640.9,3.636195]
[1727180043421,2.39145319,2641.0,2640.9,3.636195]
[1727180043727,0.79072044,2641.0,2640.9,3.636195]
[1727180043899,1.43101354,2641.0,2640.9,3.636195]
[1727180044302,2.39145319,2641.0,2640.9,7.422775]
[1727180044600,0.6402931,2641.0,2640.9,7.422775]
[1727180045020,1.43101354,2641.0,2640.9,7.422775]
[1727180046711,0.79072044,2641.0,2640.9,7.422775]
[1727180047132,1.43191866,2641.0,2640.9,7.422775]
[1727180048514,2.393716,2641.0,2640.9,7.422775]
[1727180048713,0.79072044,2641.0,2640.9,7.422775]
[1727180049049,2.393716,2641.0,2640.9,7.422775]
[1727180049339,1.60328693,2641.0,2640.9,7.422775]
[1727180049526,1.60328693,2641.0,2640.9,8.83888172]
[1727180049729,2.39400737,2641.0,2640.9,7.422775]
[1727180050132,2.39400737,2641.0,2640.9,4.57088]
[1727180050342,2.39400737,2641.0,2640.9,13.991084]
[1727180051021,0.79072044,2641.0,2640.9,13.991084]
[1727180051260,1.43191866,2641.0,2640.9,13.991084]
[1727180051615,1.43211718,2641.0,2640.9,13.991084]
[1727180051817,0.64139674,2641.0,2640.9,13.991084]
[1727180052149,1.43211718,2641.0,2640.9,13.991084]
[1727180053317,2.39421229,2641.0,2640.9,13.991084]
[1727180053512,2.39421229,2641.0,2640.8,1.5]
[1727180053513,6.57568071,2641.0,2640.8,1.5]
[1727180053736,1.60349185,2640.9,2640.8,1.5]
[1727180053937,2.78922071,2640.9,2640.8,1.5]
[1727180059223,1.60349185,2640.9,2640.8,1.5]
[1727180059559,3.18462839,2640.9,2640.8,1.5]
[1727180059715,4.46818385,2640.9,2640.8,1.5]
[1727180060127,3.18462839,2640.9,2640.8,1.5]
[1727180061272,3.18595649,2640.9,2640.8,1.5]
[1727180064267,4.46951195,2640.9,2640.8,15.762278]
[1727180064430,2.79223914,2640.9,2640.8,18.470776]
[1727180064626,2.79223914,2640.9,2640.8,15.1797]
[1727180065129,2.39646368,2640.9,2640.8,15.1797]
[1727180065333,2.79223914,2640.9,2640.8,15.1797]
[1727180065568,2.79223914,2640.9,2640.8,29.71200018]
[1727180065747,2.39650376,2640.9,2640.8,33.7631643]
[1727180065947,1.43361179,2640.9,2640.8,33.16272306]
[1727180066156,0.64192798,2640.9,2640.8,33.76315304]
[1727180066730,0.79168381,2641.0,2640.8,33.76315304]
[1727180066937,0.79168381,2641.0,2640.9,40.36761928]
[1727180067126,2.39658805,2641.0,2640.9,40.36761928]
[1727180067557,1.60490424,2641.0,2640.9,40.36761928]
[1727180067932,2.39658805,2641.0,2640.9,40.36761928]
[1727180068134,1.43364562,2641.0,2640.9,40.36761928]
[1727180068341,1.60490424,2641.0,2640.9,40.36761928]
[1727180068562,1.60483386,2641.0,2640.9,40.36761928]
[1727180068870,2.39651767,2641.0,2640.9,40.36761928]
[1727180069070,0.64196181,2641.0,2640.9,39.7671893]
[1727180069273,2.39652232,2641.0,2640.9,39.7671893]
[1727180069569,0.79168381,2641.1,2640.9,40.36755457]
[1727180069753,1.18741919,2641.3,2641.1,5.23778218]
[1727180069958,1.60471786,2641.2,2641.1,5.23778218]
[1727180070155,1.60471786,2641.2,2641.1,23.15817418]
[1727180070842,1.60460675,2641.2,2641.1,23.15817418]
[1727180071164,2.79202594,2641.2,2641.1,25.9339456]
[1727180071371,1.60460675,2641.2,2641.1,25.9339456]
[1727180072356,2.79202594,2641.2,2641.1,25.9339456]
[1727180072571,1.60460675,2641.2,2641.1,25.9339456]
[1727180072756,1.60460675,2641.2,2641.1,25.5724476]
[1727180073569,1.60460675,2641.2,2641.1,25.1053886]
[1727180074260,2.39612106,2641.2,2641.1,25.1053886]
[1727180074580,1.60460675,2641.2,2641.1,25.1053886]
[1727180074761,2.3961131,2641.2,2641.1,25.1053886]
[1727180074958,1.60460675,2641.2,2641.1,25.1053886]
[1727180075672,2.3960956,2641.2,2641.1,25.1053886]
[1727180075849,1.60460675,2641.2,2641.1,25.48049795]
[1727180076233,2.39609956,2641.2,2641.1,25.48049795]
[1727180076451,1.60460675,2641.2,2641.1,25.1053886]
[1727180076645,1.60460675,2641.2,2641.1,25.48048903]
[1727180077266,2.3960969,2641.2,2641.1,25.48048903]
[1727180078074,2.3960969,2641.2,2641.1,25.21124303]
[1727180078579,1.43333285,2641.2,2641.1,25.21124303]
[1727180078784,2.3960969,2641.2,2641.1,25.21124303]
[1727180080680,2.39721308,2641.2,2641.1,25.21124303]
[1727180082537,2.39721308,2641.2,2641.1,24.68090103]
[1727180082738,2.39721308,2641.2,2641.1,24.3058006]
[1727180083022,2.39721308,2641.2,2641.1,10.60346043]
[1727180083191,2.39721308,2641.2,2641.1,4.16121943]
[1727180083603,1.60572293,2641.2,2641.1,4.16121943]
[1727180083976,1.60572293,2641.2,2641.1,0.37502943]
[1727180084220,2.79314212,2641.2,2640.9,3.78656]
[1727180084526,6.57944212,2641.1,2640.8,1.5]
[1727180084737,2.89011817,2641.0,2640.8,1.5]
[1727180084889,1.60572293,2640.9,2640.8,1.5]
[1727180085090,1.60572293,2640.9,2640.8,1.87506474]
[1727180085591,1.6054493,2640.9,2640.8,1.87506474]
[1727180085791,1.6054493,2640.9,2640.8,5.66179474]
[1727180086005,1.6054493,2640.9,2640.8,5.28673]
[1727180086393,2.39664332,2640.9,2640.8,5.28673]
[1727180086602,2.39664332,2640.9,2640.8,5.66179028]
[1727180087229,1.6054493,2640.9,2640.8,5.66179028]
[1727180087633,2.39664922,2640.9,2640.8,5.66179028]
[1727180089525,2.39664922,2640.9,2640.8,5.28673]
[1727180089833,2.39664922,2640.9,2640.8,5.66177659]
[1727180090359,2.3966916,2640.9,2640.8,5.66177659]
[1727180090865,2.3966808,2640.9,2640.8,5.66177659]
[1727180093727,2.3966808,2640.9,2640.8,19.12232759]
[1727180095364,2.3966808,2640.9,2640.8,19.77735831]
[1727180095925,0.79113414,2641.0,2640.9,3.78658]
[1727180096124,2.39648649,2641.0,2640.9,28.86796518]
[1727180096419,0.64214094,2641.0,2640.9,32.70622108]
[1727180096863,0.64214094,2641.0,2640.9,33.53362108]
[1727180097360,0.64214094,2641.0,2640.9,27.86467608]
[1727180097945,0.64214094,2641.0,2640.9,16.987389]
[1727180098145,0.64214094,2641.0,2640.9,12.058038]
[1727180098568,2.39652008,2641.0,2640.6,4.6226686]
[1727180098769,2.39652008,2641.0,2640.7,4.0]
[1727180098770,2.39648768,2640.9,2640.7,4.0]
[1727180098937,2.39648768,2640.8,2640.7,4.0]
[1727180099141,2.79216854,2640.8,2640.6,0.0083686]
[1727180099333,2.39641419,2640.7,2640.6,0.0083686]
[1727180099538,2.39641419,2640.7,2640.6,16.1440616]
[1727180100062,2.39641419,2640.7,2640.6,19.9310716]
[1727180100063,2.39614265,2640.7,2640.6,19.9310716]
[1727180100724,1.43309345,2640.7,2640.6,19.9310716]
[1727180100920,2.39614265,2640.7,2640.6,19.9310716]
[1727180101369,1.97749651,2641.0,2640.6,19.9310716]
[1727180101370,1.186815,2641.0,2640.8,3.78666]
[1727180101527,0.96317311,2640.9,2640.8,7.57332]
[1727180101731,0.96317311,2640.9,2640.8,16.372306]
[1727180101929,0.96317311,2640.9,2640.8,22.175088]
[1727180102372,0.96317311,2640.9,2640.8,21.945127]
[1727180102730,0.96317311,2640.9,2640.8,24.51917056]
[1727180103165,1.186815,2641.0,2640.8,24.51917056]
[1727180103367,0.95839348,2640.9,2640.8,24.51917056]
[1727180103667,0.95839348,2640.9,2640.8,24.92926156]
[1727180106082,1.186815,2641.1,2641.0,3.78644]
[1727180106374,1.186815,2641.3,2641.2,3.78615]
[1727180106531,2.14579022,2641.3,2641.2,3.78615]
[1727180107525,0.95897522,2641.3,2641.2,24.03071477]
[1727180107984,0.9590216,2641.3,2641.2,23.14831377]
[1727180108263,0.9590216,2641.3,2641.2,21.68371477]
[1727180109501,0.9590216,2641.3,2641.2,19.43485177]
[1727180110434,0.9590216,2641.3,2641.2,19.18432177]
[1727180111301,0.79177244,2641.4,2641.2,19.18432177]
[1727180111497,1.75155191,2641.4,2641.3,28.08902658]
[1727180112176,1.75155191,2641.4,2641.3,26.13564658]
[1727180112425,0.95977947,2641.4,2641.3,26.13564658]
[1727180112574,1.75155191,2641.4,2641.3,26.13564658]
[1727180112765,1.75139915,2641.4,2641.3,26.13564658]
[1727180113171,1.75139915,2641.4,2641.3,12.6704294]
[1727180113420,2.14644171,2641.4,2641.3,3.78601]
[1727180113973,2.14644171,2641.4,2641.0,3.78632]
[1727180113974,2.14644171,2641.4,2641.2,3.78615]
[1727180114200,0.95962671,2641.3,2641.1,4.0]
[1727180114401,2.14644171,2641.2,2641.1,4.0]
[1727180114584,2.14644171,2641.2,2641.1,8.493331]
[1727180114892,2.14644171,2641.2,2641.0,3.78632]
[1727180115083,1.75123942,2641.1,2640.8,5.59343]
[1727180115310,1.7511463,2641.0,2640.9,14.271901]
[1727180115515,1.7511463,2641.0,2640.9,4.0]
[1727180116008,2.14634859,2641.0,2640.9,4.0]
[1727180116416,2.14634859,2641.0,2640.8,4.78662]
[1727180116580,1.7510758,2640.9,2640.8,4.78662]
[1727180116801,1.7510758,2640.9,2640.8,9.396458]
[1727180117450,1.75098445,2640.9,2640.8,9.396458]
[1727180117609,1.75098445,2640.9,2640.8,10.79630566]
[1727180118317,1.75098445,2640.9,2640.8,7.00968566]
[1727180119002,1.75098445,2640.9,2640.8,5.609838]
[1727180119427,1.75098445,2640.9,2640.8,9.396568]
[1727180121312,2.39060527,2640.9,2640.8,9.396568]
[1727180122302,0.63962082,2640.9,2640.8,9.396568]
[1727180122705,1.5990397,2640.9,2640.8,9.396568]
[1727180123739,1.5990397,2640.9,2640.8,10.93891988]
[1727180124039,0.63962082,2640.9,2640.8,10.93891988]
[1727180125514,1.59907255,2640.9,2640.8,12.39051206]
[1727180126656,2.39061476,2640.9,2640.8,10.93891988]
[1727180126811,1.43116303,2640.9,2640.8,10.93891988]
[1727180127010,2.39074767,2640.9,2640.8,10.93891988]
[1727180127207,2.39074767,2640.9,2640.8,7.15218988]
[1727180127443,2.39074767,2640.9,2640.8,5.609838]
[1727180127612,2.39074767,2640.9,2640.8,9.396568]
[1727180130925,1.43122439,2640.9,2640.8,9.396568]
[1727180131253,2.39074767,2640.9,2640.8,9.396568]
[1727180135940,1.43122439,2640.9,2640.8,9.396568]
[1727180136130,2.39074767,2640.9,2640.8,10.93892588]
[1727180136520,1.43122439,2640.9,2640.8,10.93892588]
[1727180136842,2.39074767,2640.9,2640.8,10.93892588]
[1727180137542,2.39074767,2640.9,2640.8,1.0]
[1727180137543,4.85857808,2640.9,2640.8,1.0]
[1727180137856,8.64515808,2640.9,2640.8,1.0]
[1727180139955,6.66615636,2640.9,2640.8,1.0]
[1727180140528,8.24847122,2640.9,2640.8,1.0]
[1727180141041,6.66615636,2640.9,2640.8,1.0]
[1727180141425,8.24938512,2640.9,2640.8,1.0]
[1727180141949,6.6671681,2640.9,2640.8,1.0]
[1727180142147,6.76183694,2640.9,2640.8,1.0]
[1727180142463,10.73503018,2640.9,2640.8,1.0]
[1727180142767,8.2670358,2640.9,2640.8,1.0]
[1727180143469,10.63768872,2640.9,2640.8,1.0]
[1727180143685,8.2670358,2640.9,2640.8,1.0]
[1727180143990,6.6671681,2640.9,2640.8,0.02151517]
[1727180144178,8.36173158,2640.9,2640.8,0.02151517]
[1727180144332,8.2670358,2640.9,2640.8,0.02151517]
[1727180144944,10.48846708,2640.9,2640.8,0.02151517]
[1727180145143,12.08833478,2640.9,2640.8,0.02151517]
[1727180146289,12.07878887,2640.9,2640.8,0.02151517]
[1727180146572,9.70911158,2640.9,2640.8,0.02151517]
[1727180146906,8.10924388,2640.9,2640.8,0.02151517]
[1727180147084,9.69959827,2640.9,2640.8,0.02151517]
[1727180147375,8.10924388,2640.9,2640.8,0.02151517]
[1727180148378,6.6576517,2640.9,2640.8,0.02151517]
[1727180148548,8.33146415,2640.9,2640.8,0.02151517]
[1727180148751,6.6576517,2640.9,2640.8,0.02151517]
[1727180148947,8.33132532,2640.9,2640.8,0.02151517]
[1727180149178,8.23664574,2640.9,2640.8,0.02151517]
[1727180149341,8.2366707,2640.9,2640.8,0.02151517]
[1727180149540,6.6576517,2640.9,2640.8,0.02151517]
[1727180149874,6.75233126,2640.9,2640.8,0.02151517]
[1727180150236,9.75233126,2640.9,2640.8,0.02151517]
[1727180150541,9.6576517,2640.9,2640.8,0.02151517]
[1727180150949,9.65652271,2640.9,2640.8,0.02151517]
[1727180151150,11.24608166,2640.9,2640.8,0.02151517]
[1727180151373,13.61407653,2640.9,2640.8,0.02151517]
[1727180151573,11.24608166,2640.9,2640.8,0.02151517]
[1727180151990,13.61407653,2640.9,2640.8,0.02151517]
[1727180152705,11.24608166,2640.9,2640.8,0.02151517]
[1727180153688,13.61407653,2640.9,2640.8,0.02151517]
[1727180154157,11.24608166,2640.9,2640.8,0.02151517]
[1727180154357,16.22608166,2640.9,2640.8,0.02151517]
[1727180154581,18.59407653,2640.9,2640.8,0.02151517]
[1727180155206,18.59407653,2640.9,2640.8,0.00055539]
[1727180155207,18.98874234,2640.9,2640.8,0.00055539]
[1727180155506,16.22608166,2640.9,2640.8,0.00055539]
[1727180156054,18.98605338,2640.9,2640.8,0.00055539]
[1727180156855,6.78687,2640.7,2640.6,0.0083686]
[1727180157056,16.18311474,2640.7,2640.6,0.0083686]
[1727180157256,17.67796384,2640.7,2640.6,0.0083686]
[1727180158298,19.37566169,2640.7,2640.6,0.0083686]
[1727180159109,19.37566169,2640.7,2640.6,0.00021337]
[1727180160195,34.30566169,2640.7,2640.6,0.00021337]
[1727180160684,36.66733947,2640.7,2640.6,0.00021337]
[1727180162259,29.56454997,2640.7,2640.6,0.00021337]
[1727180162766,31.53504404,2640.7,2640.6,0.00021337]
[1727180163900,29.55353736,2640.7,2640.6,0.00021337]
[1727180164104,29.56624325,2640.7,2640.6,0.00021337]
[1727180164576,13.21253971,2640.7,2640.6,0.00021337]
[1727180164774,6.56900235,2640.7,2640.6,0.00021337]
[1727180164981,2.37724022,2640.7,2640.6,0.00021337]
[1727180165197,4.57485787,2640.9,2640.6,1.54556771]
[1727180165499,3.78662,2640.9,2640.6,1.54556771]
[1727180165730,3.78662,2640.9,2640.6,0.78811337]
[1727180165731,4.57485787,2640.9,2640.6,0.78811337]
[1727180166311,0.78823787,2641.0,2640.6,0.78811337]
[1727180166616,0.78823787,2641.0,2640.8,0.7879]
[1727180166617,2.39268762,2641.0,2640.8,0.7879]
[1727180166827,8.36240646,2641.3,2640.8,0.7879]
[1727180166828,0.78823787,2641.1,2640.9,13.296029]
[1727180167014,9.94844356,2641.3,2641.0,3.78637]
[1727180167015,5.76823787,2641.3,2641.0,3.78637]
[1727180167318,1.18233356,2641.5,2641.0,3.78637]
[1727180167319,5.76823787,2641.4,2641.1,1.481466]
[1727180167491,4.98,2641.4,2641.1,5.267686]
[1727180167691,4.98,2641.4,2641.3,4.57391]
[1727180167911,4.98,2641.4,2641.3,31.244818]
[1727180168096,4.98,2641.4,2641.3,35.0830739]
[1727180168292,4.98,2641.4,2641.3,34.6931229]
[1727180168486,4.98,2641.4,2641.3,29.8595999]
[1727180168886,4.98,2641.8,2641.6,3.78556]
[1727180169220,19.91,2641.8,2641.7,36.741499]
[1727180169595,19.91,2641.8,2641.7,27.074903]
[1727180170326,19.91,2641.8,2641.7,4.951896]
[1727180170629,19.91,2641.8,2641.7,21.230273]
[1727180170837,19.91,2641.8,2641.7,25.015713]
[1727180172930,19.52113281,2641.8,2641.7,28.16500303]
[1727180174284,16.40079578,2641.8,2641.7,31.16500303]
[1727180174519,16.40079578,2641.8,2641.7,32.015713]
[1727180175223,3.89817241,2641.8,2641.7,32.015713]
[1727180175380,0.03803163,2643.0,2642.9,4.57162]
[1727180175584,11.59268163,2643.0,2642.9,29.03143851]
[1727180175785,11.59268163,2643.0,2642.9,24.92466]
[1727180176287,11.59268163,2643.0,2642.9,28.07395003]
[1727180176641,11.59268163,2643.0,2642.9,30.37915976]
[1727180178454,11.59268163,2643.0,2642.9,28.01776973]
[1727180180870,0.03803163,2643.0,2642.9,28.01776973]
[1727180181664,0.03803163,2643.0,2642.9,28.51776973]
[1727180182527,0.03803163,2643.0,2642.9,15.786715]
[1727180182735,0.03803163,2643.0,2642.9,14.038523]
[1727180183427,0.03803163,2643.0,2642.9,1.2879]
[1727180183623,0.03803163,2643.0,2642.9,21.287473]
[1727180183828,0.03803163,2643.0,2642.9,18.292607]
[1727180184040,0.03803163,2643.0,2642.9,12.321509]
[1727180185152,0.03803163,2643.0,2642.9,9.604742]
[1727180188298,3.82160163,2643.0,2642.9,5.293281]
[1727180188482,4.58209979,2643.0,2642.9,0.5]
[1727180188773,3.82160163,2643.0,2642.9,0.5]
[1727180192843,4.63200163,2643.0,2642.9,0.5]
[1727180194935,4.72659854,2643.0,2642.9,0.5]
[1727180195135,5.57760367,2643.0,2642.9,0.5]
[1727180195644,4.63200163,2643.0,2642.9,0.5]
[1727180195967,4.72659866,2643.0,2642.9,0.5]
[1727180196481,4.72660222,2643.0,2642.9,0.5]
[1727180196774,4.63200163,2643.0,2642.9,0.5]
[1727180203457,3.82160163,2643.0,2642.9,0.5]
[1727180203666,0.03803163,2643.0,2642.9,0.5]
[1727180205749,0.03803163,2643.0,2642.9,21.079006]
[1727180205949,0.03803163,2643.0,2642.9,23.8802106]
[1727180206445,0.03803163,2643.0,2642.9,18.665325]
[1727180206843,0.03803163,2643.0,2642.9,22.449045]
[1727180207143,0.03803163,2643.0,2642.9,26.41693503]
[1727180209064,0.03803163,2643.0,2642.9,56.22291003]
[1727180212358,0.03803163,2643.0,2642.9,52.22291003]
[1727180212557,0.03803163,2643.0,2642.9,56.06116593]
[1727180212789,0.03803163,2643.0,2642.9,52.70234493]
[1727180215311,0.03803163,2643.0,2642.9,49.65447193]
[1727180215618,0.03803163,2643.0,2642.9,53.65447193]
[1727180217073,0.03803163,2643.0,2642.9,57.02846987]
[1727180222399,0.03803163,2643.0,2642.9,56.65447193]
[1727180222596,0.03803163,2643.0,2642.9,57.02875684]
[1727180224027,0.03803163,2643.0,2642.9,53.02875684]
[1727180224180,0.03803163,2643.0,2642.9,56.17804687]
[1727180224508,0.03803163,2643.0,2642.9,53.02875684]
[1727180226888,0.03803163,2643.0,2642.9,57.02875684]
[1727180229835,0.03803163,2643.0,2642.9,56.65447193]
[1727180230003,0.03803163,2643.0,2642.9,57.02848811]
[1727180231432,0.03803163,2643.0,2642.9,53.02848811]
[1727180231616,0.03803163,2643.0,2642.9,52.52848811]
[1727180231819,0.03803163,2643.0,2642.9,53.02848811]
[1727180233466,0.03803163,2643.0,2642.9,53.02841055]
[1727180234121,0.03803163,2643.0,2642.9,48.51621155]
[1727180234325,0.03803163,2643.0,2642.9,50.81608712]
[1727180235750,0.03803163,2643.0,2642.9,46.81608712]
[1727180235952,0.03803163,2643.0,2642.9,47.31608712]
[1727180237455,0.03803163,2643.0,2642.9,46.9421485]
[1727180237618,0.03803163,2643.0,2642.9,47.31608936]
[1727180238155,0.03803163,2643.0,2642.9,47.69004616]
[1727180238460,0.03803163,2643.0,2642.9,47.3161053]
[1727180238625,0.03803163,2643.0,2642.9,51.3161053]
[1727180239956,0.03803163,2643.0,2642.9,51.8161053]
[1727180240277,0.03803163,2643.0,2642.9,47.8161053]
[1727180243388,0.03803163,2643.0,2642.9,48.29254794]
[1727180243948,0.03803163,2643.0,2642.9,47.91859114]
[1727180244294,0.03803163,2643.0,2642.9,48.41859114]
[1727180244654,0.03803163,2643.0,2642.9,48.79276555]
[1727180244885,0.03803163,2643.0,2642.9,48.31632291]
[1727180245083,0.03803163,2643.0,2642.9,59.60943732]
[1727180245506,0.03803163,2643.0,2642.9,59.23521591]
[1727180245686,0.03803163,2643.0,2642.9,59.60949198]
[1727180247483,0.03803163,2643.0,2642.9,63.23521591]
[1727180247885,0.03803163,2643.0,2642.9,63.60963413]
[1727180248086,0.03803163,2643.0,2642.9,64.27444131]
[1727180248309,0.03803163,2643.0,2642.9,64.77444131]
[1727180248622,0.03803163,2643.0,2642.9,64.4002669]
[1727180249116,0.03803163,2643.0,2642.9,65.39772668]
[1727180249278,0.03803163,2643.0,2642.9,64.4002669]
[1727180249478,0.03803163,2643.0,2642.9,65.39772707]
[1727180249931,0.03803163,2643.0,2642.9,64.02584868]
[1727180250089,0.03803163,2643.0,2642.9,65.39814381]
[1727180251115,0.03803163,2643.0,2642.9,65.02353411]
[1727180251490,0.03803163,2643.0,2642.9,65.398234]
[1727180252200,2.42694146,2643.8,2642.9,65.398234]
[1727180252201,0.82648287,2643.8,2643.5,0.7745]
[1727180252437,1.61429646,2644.0,2643.8,4.55693]
[1727180252438,0.038,2644.0,2643.8,4.55693]
[1727180252642,0.038,2644.0,2643.9,53.93195345]
[1727180252956,0.038,2644.0,2643.9,57.10962196]
[1727180253528,0.038,2644.0,2643.9,56.31542231]
[1727180253750,0.038,2644.0,2643.9,57.10962196]
[1727180254371,0.038,2644.0,2643.9,58.92241575]
[1727180254665,0.038,2644.0,2643.9,58.1282161]
[1727180254827,0.038,2644.0,2643.9,58.00198005]
[1727180255464,0.038,2644.0,2643.9,56.31737979]
[1727180255650,0.038,2644.0,2643.9,56.98941367]
[1727180256079,0.038,2644.0,2643.9,13.01811367]
[1727180256286,0.038,2644.0,2643.9,60.98941367]
[1727180256575,0.038,2644.0,2643.9,60.31737979]
[1727180258676,0.038,2644.0,2643.9,59.9426799]
[1727180258848,0.038,2644.0,2643.9,60.31605213]
[1727180261887,0.038,2644.0,2643.9,59.9426799]
[1727180262059,0.038,2644.0,2643.9,60.31579915]
[1727180265457,0.038,2644.0,2643.9,59.9426799]
[1727180265652,0.038,2644.0,2643.9,60.31562071]
[1727180266277,0.038,2644.0,2643.9,55.9426799]
[1727180266475,0.038,2644.0,2643.9,56.31557082]
[1727180268692,0.038,2644.0,2643.9,55.9426799]
[1727180268854,0.038,2644.0,2643.9,56.31545731]
[1727180269255,0.038,2644.0,2643.9,60.31545731]
[1727180269574,0.038,2644.0,2643.9,60.68823472]
[1727180272310,0.038,2644.0,2643.9,60.31545731]
[1727180273276,0.038,2644.0,2643.9,59.54095731]
[1727180273686,0.038,2644.0,2643.9,55.54095731]
[1727180274382,0.038,2644.0,2643.9,9.88175902]
[1727180274628,0.038,2644.0,2643.9,53.85305902]
[1727180277486,0.038,2644.0,2643.9,52.40523397]
[1727180277669,0.038,2644.0,2643.9,53.85305902]
[1727180278621,0.038,2644.0,2643.9,57.85305902]
[1727180278874,0.038,2644.0,2643.9,57.48028161]
[1727180281182,0.8674,2644.0,2643.9,46.747682]